[Event "December 19 Early 2023"]
[Site "https://www.chess.com"]
[Date "2023.12.19"]
[Round "7"]
[White "Clawitter, Craig"]
[Black "Eilers, Stefan"]
[Result "0-1"]
[Board "144"]
[TimeControl "180+1"]
[WhiteFideId "2023105"]
[BlackFideId "4609565"]
[WhiteElo "2262"]
[BlackElo "2438"]
[WhiteTeam "USA"]
[BlackTeam "GER"]
[WhiteClock "0:00:10"]
[BlackClock "0:00:35"]

1. e4 {[%clk 0:03:00]}  Nc6 {[%clk 0:02:59]} 2. Nc3 {[%clk 0:02:59]}  e5 {[%clk 0:02:58]} 3. g3 {[%clk 0:02:59]}  Nf6 {[%clk 0:02:57]} 4. Bg2 {[%clk 0:03:00]}  Bc5 {[%clk 0:02:57]} 5. Nge2 {[%clk 0:02:58]}  d6 {[%clk 0:02:57]} 6. O-O {[%clk 0:02:56]}  a6 {[%clk 0:02:56]} 7. d3 {[%clk 0:02:55]}  h6 {[%clk 0:02:56]} 8. h3 {[%clk 0:02:52]}  O-O {[%clk 0:02:56]} 9. Be3 {[%clk 0:02:48]}  Bxe3 {[%clk 0:02:51]} 10. fxe3 {[%clk 0:02:49]}  Ne7 {[%clk 0:02:47]} 11. Qd2 {[%clk 0:02:36]}  c6 {[%clk 0:02:47]} 12. g4 {[%clk 0:02:31]}  Ng6 {[%clk 0:02:46]} 13. Ng3 {[%clk 0:02:29]}  b5 {[%clk 0:02:35]} 14. Nf5 {[%clk 0:02:16]}  Nh7 {[%clk 0:02:32]} 15. a3 {[%clk 0:02:03]}  Be6 {[%clk 0:02:26]} 16. d4 {[%clk 0:01:56]}  Qc7 {[%clk 0:02:19]} 17. d5 {[%clk 0:01:31]}  cxd5 {[%clk 0:02:08]} 18. exd5 {[%clk 0:01:31]}  Bxf5 {[%clk 0:02:01]} 19. gxf5 {[%clk 0:01:21]}  Nh4 {[%clk 0:02:01]} 20. Ne4 {[%clk 0:01:17]}  Qe7 {[%clk 0:01:54]} 21. f6 {[%clk 0:01:09]}  Nxf6 {[%clk 0:01:50]} 22. Nxf6+ {[%clk 0:01:09]}  gxf6 {[%clk 0:01:51]} 23. e4 {[%clk 0:00:45]}  Kh7 {[%clk 0:01:45]} 24. Kh2 {[%clk 0:00:42]}  Rg8 {[%clk 0:01:40]} 25. Rg1 {[%clk 0:00:42]}  f5 {[%clk 0:01:26]} 26. Raf1 {[%clk 0:00:31]}  f4 {[%clk 0:01:20]} 27. Bf3 {[%clk 0:00:20]}  Nxf3+ {[%clk 0:00:52]} 28. Rxf3 {[%clk 0:00:20]}  Rxg1 {[%clk 0:00:52]} 29. Kxg1 {[%clk 0:00:20]}  Rg8+ {[%clk 0:00:51]} 30. Kh2 {[%clk 0:00:20]}  Qg5 {[%clk 0:00:50]} 31. Qf2 {[%clk 0:00:20]}  f5 {[%clk 0:00:44]} 32. exf5 {[%clk 0:00:17]}  Qxf5 {[%clk 0:00:45]} 33. Rc3 {[%clk 0:00:16]}  Rg7 {[%clk 0:00:40]} 34. Rc6 {[%clk 0:00:15]}  e4 {[%clk 0:00:39]} 35. Rxd6 {[%clk 0:00:13]}  f3 {[%clk 0:00:36]} 36. Qh4 {[%clk 0:00:10]}  Qe5+ {[%clk 0:00:35]} 0-1

[Event "December 19 Early 2023"]
[Site "https://www.chess.com"]
[Date "2023.12.19"]
[Round "7"]
[White "Wanyama, Harold"]
[Black "Rose, Felix"]
[Result "1-0"]
[Board "145"]
[TimeControl "180+1"]
[WhiteFideId "10000380"]
[BlackFideId "5105722"]
[WhiteElo "2228"]
[BlackElo "2039"]
[WhiteTeam "UGA"]
[BlackTeam "MEX"]
[WhiteClock "0:01:25"]
[BlackClock "0:00:18"]

1. d4 {[%clk 0:02:58]}  d5 {[%clk 0:02:59]} 2. c4 {[%clk 0:02:58]}  e6 {[%clk 0:02:59]} 3. g3 {[%clk 0:02:57]}  Nf6 {[%clk 0:02:57]} 4. Bg2 {[%clk 0:02:57]}  dxc4 {[%clk 0:02:55]} 5. Nf3 {[%clk 0:02:55]}  a6 {[%clk 0:02:55]} 6. a4 {[%clk 0:02:51]}  Nc6 {[%clk 0:02:55]} 7. O-O {[%clk 0:02:49]}  Rb8 {[%clk 0:02:56]} 8. a5 {[%clk 0:02:48]}  Bb4 {[%clk 0:02:48]} 9. Qa4 {[%clk 0:02:41]}  Qe7 {[%clk 0:02:30]} 10. Ne5 {[%clk 0:02:31]}  O-O {[%clk 0:02:26]} 11. Bxc6 {[%clk 0:02:29]}  bxc6 {[%clk 0:02:01]} 12. Nxc6 {[%clk 0:02:27]}  Qd6 {[%clk 0:02:00]} 13. Nxb8 {[%clk 0:02:25]}  Bb7 {[%clk 0:02:00]} 14. Nc3 {[%clk 0:02:07]}  Rxb8 {[%clk 0:01:50]} 15. Bf4 {[%clk 0:02:06]}  Qxd4 {[%clk 0:01:22]} 16. Qxb4 {[%clk 0:02:03]}  e5 {[%clk 0:01:06]} 17. Be3 {[%clk 0:02:01]}  Qg4 {[%clk 0:01:05]} 18. f3 {[%clk 0:01:54]}  Qh3 {[%clk 0:01:04]} 19. Rf2 {[%clk 0:01:50]}  e4 {[%clk 0:00:44]} 20. Ba7 {[%clk 0:01:45]}  e3 {[%clk 0:00:41]} 21. Bxe3 {[%clk 0:01:43]}  h5 {[%clk 0:00:39]} 22. Qxc4 {[%clk 0:01:38]}  Re8 {[%clk 0:00:32]} 23. Bg5 {[%clk 0:01:31]}  Ng4 {[%clk 0:00:22]} 24. fxg4 {[%clk 0:01:27]}  h4 {[%clk 0:00:23]} 25. Qxf7+ {[%clk 0:01:25]}  Kh7 {[%clk 0:00:18]} 26. Qh5+ {[%clk 0:01:25]} 1-0

[Event "December 19 Early 2023"]
[Site "https://www.chess.com"]
[Date "2023.12.19"]
[Round "7"]
[White "Hartikainen, Jarmo"]
[Black "Figorito, Nick"]
[Result "1/2-1/2"]
[Board "146"]
[TimeControl "180+1"]
[WhiteFideId "503134"]
[BlackFideId "30923689"]
[WhiteElo "2153"]
[BlackElo "2416"]
[WhiteTeam "FIN"]
[BlackTeam "USA"]
[WhiteClock "0:00:11"]
[BlackClock "0:00:14"]

1. e4 {[%clk 0:03:00]}  e6 {[%clk 0:03:00]} 2. d4 {[%clk 0:03:00]}  d5 {[%clk 0:03:01]} 3. Nd2 {[%clk 0:03:00]}  Nf6 {[%clk 0:03:01]} 4. e5 {[%clk 0:03:00]}  Nfd7 {[%clk 0:03:02]} 5. Bd3 {[%clk 0:03:00]}  c5 {[%clk 0:03:02]} 6. c3 {[%clk 0:03:01]}  Nc6 {[%clk 0:03:03]} 7. Ne2 {[%clk 0:03:01]}  cxd4 {[%clk 0:03:04]} 8. cxd4 {[%clk 0:03:01]}  f6 {[%clk 0:03:05]} 9. exf6 {[%clk 0:03:01]}  Nxf6 {[%clk 0:03:06]} 10. a3 {[%clk 0:02:59]}  Bd6 {[%clk 0:03:06]} 11. O-O {[%clk 0:02:57]}  Qc7 {[%clk 0:03:05]} 12. h3 {[%clk 0:02:54]}  O-O {[%clk 0:03:05]} 13. Qc2 {[%clk 0:02:54]}  g6 {[%clk 0:03:01]} 14. Nf3 {[%clk 0:02:51]}  Qg7 {[%clk 0:03:01]} 15. Ng3 {[%clk 0:02:40]}  Bd7 {[%clk 0:02:55]} 16. Re1 {[%clk 0:02:39]}  Rac8 {[%clk 0:02:52]} 17. Qd2 {[%clk 0:02:35]}  Bxg3 {[%clk 0:02:47]} 18. fxg3 {[%clk 0:02:35]}  Nh5 {[%clk 0:02:46]} 19. g4 {[%clk 0:02:09]}  Nxd4 {[%clk 0:02:37]} 20. Nxd4 {[%clk 0:01:52]}  Qxd4+ {[%clk 0:02:36]} 21. Qe3 {[%clk 0:01:53]}  Qxe3+ {[%clk 0:02:23]} 22. Bxe3 {[%clk 0:01:52]}  Nf4 {[%clk 0:02:23]} 23. Bf1 {[%clk 0:01:38]}  a6 {[%clk 0:02:08]} 24. Rac1 {[%clk 0:01:37]}  Rxc1 {[%clk 0:01:43]} 25. Rxc1 {[%clk 0:01:35]}  Bc6 {[%clk 0:01:43]} 26. g3 {[%clk 0:01:34]}  g5 {[%clk 0:01:25]} 27. gxf4 {[%clk 0:01:30]}  gxf4 {[%clk 0:01:26]} 28. Bd4 {[%clk 0:01:29]}  h5 {[%clk 0:01:14]} 29. g5 {[%clk 0:01:22]}  f3 {[%clk 0:01:12]} 30. Kf2 {[%clk 0:01:17]}  Rf4 {[%clk 0:01:12]} 31. Bf6 {[%clk 0:01:06]}  Kf7 {[%clk 0:00:45]} 32. Bd3 {[%clk 0:01:03]}  Rh4 {[%clk 0:00:41]} 33. Kg3 {[%clk 0:00:58]}  Ra4 {[%clk 0:00:41]} 34. Be5 {[%clk 0:00:52]}  d4 {[%clk 0:00:32]} 35. g6+ {[%clk 0:00:51]}  Kg8 {[%clk 0:00:32]} 36. Kf4 {[%clk 0:00:23]}  Ra5 {[%clk 0:00:30]} 37. Rg1 {[%clk 0:00:20]}  Bd5 {[%clk 0:00:23]} 38. Rf1 {[%clk 0:00:12]}  Rc5 {[%clk 0:00:22]} 39. Kg5 {[%clk 0:00:11]}  h4 {[%clk 0:00:19]} 40. Kf6 {[%clk 0:00:11]}  Rc8 {[%clk 0:00:18]} 41. Kg5 {[%clk 0:00:10]}  Rf8 {[%clk 0:00:17]} 42. Kxh4 {[%clk 0:00:10]}  f2 {[%clk 0:00:18]} 43. Kg3 {[%clk 0:00:09]}  Rf3+ {[%clk 0:00:18]} 44. Kg4 {[%clk 0:00:10]}  Rxd3 {[%clk 0:00:18]} 45. Rxf2 {[%clk 0:00:10]}  Re3 {[%clk 0:00:13]} 46. Bxd4 {[%clk 0:00:09]}  Re4+ {[%clk 0:00:13]} 47. Rf4 {[%clk 0:00:10]}  Rxf4+ {[%clk 0:00:10]} 48. Kxf4 {[%clk 0:00:11]}  Bg2 {[%clk 0:00:09]} 49. h4 {[%clk 0:00:10]}  Bf1 {[%clk 0:00:08]} 50. h5 {[%clk 0:00:10]}  Bd3 {[%clk 0:00:09]} 51. h6 {[%clk 0:00:10]}  Bxg6 {[%clk 0:00:09]} 52. Ke5 {[%clk 0:00:10]}  Kf7 {[%clk 0:00:10]} 53. Kd6 {[%clk 0:00:09]}  Be4 {[%clk 0:00:08]} 54. Kc7 {[%clk 0:00:09]}  Kg6 {[%clk 0:00:08]} 55. b4 {[%clk 0:00:06]}  Kxh6 {[%clk 0:00:08]} 56. a4 {[%clk 0:00:07]}  Kg6 {[%clk 0:00:08]} 57. b5 {[%clk 0:00:07]}  axb5 {[%clk 0:00:09]} 58. axb5 {[%clk 0:00:07]}  Bd5 {[%clk 0:00:08]} 59. Kd6 {[%clk 0:00:07]}  Kf5 {[%clk 0:00:09]} 60. Bc5 {[%clk 0:00:08]}  Bg2 {[%clk 0:00:08]} 61. Bd4 {[%clk 0:00:08]}  e5 {[%clk 0:00:08]} 62. Bxe5 {[%clk 0:00:08]}  Ke4 {[%clk 0:00:08]} 63. Bf6 {[%clk 0:00:07]}  Kd3 {[%clk 0:00:09]} 64. b6 {[%clk 0:00:08]}  Kc4 {[%clk 0:00:09]} 65. Bd8 {[%clk 0:00:08]}  Kb5 {[%clk 0:00:10]} 66. Bc7 {[%clk 0:00:08]}  Ka6 {[%clk 0:00:11]} 67. Bd8 {[%clk 0:00:09]}  Bc6 {[%clk 0:00:12]} 68. Bc7 {[%clk 0:00:10]}  Bg2 {[%clk 0:00:12]} 69. Bd8 {[%clk 0:00:10]}  Bh1 {[%clk 0:00:13]} 70. Bc7 {[%clk 0:00:11]}  Bg2 {[%clk 0:00:14]} 1/2-1/2

[Event "December 19 Early 2023"]
[Site "https://www.chess.com"]
[Date "2023.12.19"]
[Round "7"]
[White "Gruzman, Ilya"]
[Black "Masague Artero, Guerau"]
[Result "0-1"]
[Board "149"]
[TimeControl "180+1"]
[WhiteFideId "2812703"]
[BlackFideId "32098952"]
[WhiteElo "1986"]
[BlackElo "2253"]
[WhiteTeam "ISR"]
[BlackTeam "ESP"]
[WhiteClock "0:02:38"]
[BlackClock "0:02:52"]

1. e4 {[%clk 0:03:00]}  Nc6 {[%clk 0:02:58]} 2. Nf3 {[%clk 0:02:58]}  d6 {[%clk 0:02:59]} 3. d4 {[%clk 0:02:58]}  Nf6 {[%clk 0:02:59]} 4. Nc3 {[%clk 0:02:57]}  g6 {[%clk 0:03:00]} 5. Bc4 {[%clk 0:02:57]}  Bg7 {[%clk 0:03:00]} 6. Bf4 {[%clk 0:02:53]}  Bg4 {[%clk 0:02:57]} 7. Qd2 {[%clk 0:02:52]}  Bxf3 {[%clk 0:02:56]} 8. gxf3 {[%clk 0:02:53]}  e5 {[%clk 0:02:55]} 9. dxe5 {[%clk 0:02:52]}  dxe5 {[%clk 0:02:56]} 10. Be3 {[%clk 0:02:48]}  Qxd2+ {[%clk 0:02:54]} 11. Bxd2 {[%clk 0:02:49]}  Nd4 {[%clk 0:02:53]} 12. Be2 {[%clk 0:02:38]}  Nxc2+ {[%clk 0:02:52]} 0-1

[Event "December 19 Early 2023"]
[Site "https://www.chess.com"]
[Date "2023.12.19"]
[Round "7"]
[White "Recuero Guerra, Javier"]
[Black "Fishchuk, Vladyslav"]
[Result "0-1"]
[Board "151"]
[TimeControl "180+1"]
[WhiteFideId "2254085"]
[BlackFideId "34122117"]
[WhiteElo "2208"]
[BlackElo "2055"]
[WhiteTeam "ESP"]
[BlackTeam "UKR"]
[WhiteClock "0:00:03"]
[BlackClock "0:01:15"]

1. e4 {[%clk 0:03:00]}  c5 {[%clk 0:02:56]} 2. Nf3 {[%clk 0:02:56]}  Nf6 {[%clk 0:02:56]} 3. e5 {[%clk 0:02:42]}  Nd5 {[%clk 0:02:56]} 4. c3 {[%clk 0:02:41]}  Nc6 {[%clk 0:02:55]} 5. d4 {[%clk 0:02:41]}  cxd4 {[%clk 0:02:55]} 6. cxd4 {[%clk 0:02:41]}  d6 {[%clk 0:02:56]} 7. a3 {[%clk 0:02:40]}  Bg4 {[%clk 0:02:51]} 8. Bc4 {[%clk 0:02:16]}  Nb6 {[%clk 0:02:30]} 9. Bxf7+ {[%clk 0:02:08]}  Kxf7 {[%clk 0:02:25]} 10. Ng5+ {[%clk 0:02:06]}  Ke8 {[%clk 0:02:22]} 11. Qxg4 {[%clk 0:02:06]}  dxe5 {[%clk 0:02:21]} 12. Ne6 {[%clk 0:01:02]}  Qd6 {[%clk 0:02:15]} 13. Nxg7+ {[%clk 0:00:56]}  Bxg7 {[%clk 0:02:13]} 14. Qxg7 {[%clk 0:00:56]}  Kd7 {[%clk 0:02:00]} 15. Qg4+ {[%clk 0:00:51]}  Kc7 {[%clk 0:01:59]} 16. dxe5 {[%clk 0:00:46]}  Nxe5 {[%clk 0:01:57]} 17. Qd1 {[%clk 0:00:23]}  Qc6 {[%clk 0:01:42]} 18. f3 {[%clk 0:00:07]}  Rad8 {[%clk 0:01:38]} 19. Bd2 {[%clk 0:00:03]}  Nd3+ {[%clk 0:01:35]} 20. Kf1 {[%clk 0:00:03]}  Nxb2 {[%clk 0:01:31]} 21. Qe2 {[%clk 0:00:03]}  N6c4 {[%clk 0:01:22]} 22. Bc3 {[%clk 0:00:02]}  Rd1+ {[%clk 0:01:19]} 23. Kf2 {[%clk 0:00:02]}  Qc5+ {[%clk 0:01:15]} 24. Kg3 {[%clk 0:00:02]}  Rg8+ {[%clk 0:01:15]} 25. Kh3 {[%clk 0:00:03]}  Qh5# {[%clk 0:01:15]} 0-1

[Event "December 19 Early 2023"]
[Site "https://www.chess.com"]
[Date "2023.12.19"]
[Round "7"]
[White "Stankovic, Boris"]
[Black "Buscar, Michael"]
[Result "1-0"]
[Board "152"]
[TimeControl "180+1"]
[WhiteFideId "985317"]
[BlackFideId "2603616"]
[WhiteElo "2265"]
[BlackElo "2010"]
[WhiteTeam "SRB"]
[BlackTeam "CAN"]
[WhiteClock "0:00:11"]
[BlackClock "0:00:13"]

1. e4 {[%clk 0:02:55]}  c5 {[%clk 0:02:58]} 2. b3 {[%clk 0:02:51]}  Nf6 {[%clk 0:02:56]} 3. e5 {[%clk 0:02:44]}  Nd5 {[%clk 0:02:56]} 4. Bb2 {[%clk 0:02:44]}  Nc6 {[%clk 0:02:54]} 5. Bc4 {[%clk 0:02:44]}  Nc7 {[%clk 0:02:54]} 6. f4 {[%clk 0:02:41]}  d5 {[%clk 0:02:51]} 7. exd6 {[%clk 0:02:39]}  Qxd6 {[%clk 0:02:51]} 8. Nf3 {[%clk 0:02:38]}  Be6 {[%clk 0:02:49]} 9. Na3 {[%clk 0:02:36]}  Qxf4 {[%clk 0:02:46]} 10. O-O {[%clk 0:02:35]}  O-O-O {[%clk 0:02:42]} 11. Ne5 {[%clk 0:02:16]}  Qg5 {[%clk 0:02:27]} 12. Nxf7 {[%clk 0:02:12]}  Bxf7 {[%clk 0:02:26]} 13. Rxf7 {[%clk 0:02:09]}  Rxd2 {[%clk 0:02:26]} 14. Qf3 {[%clk 0:02:09]}  Rd8 {[%clk 0:01:34]} 15. Nb5 {[%clk 0:01:49]}  Nxb5 {[%clk 0:01:15]} 16. Bxb5 {[%clk 0:01:50]}  Nd4 {[%clk 0:01:15]} 17. Bxd4 {[%clk 0:01:48]}  cxd4 {[%clk 0:01:16]} 18. Bd3 {[%clk 0:01:19]}  g6 {[%clk 0:00:39]} 19. Re1 {[%clk 0:01:16]}  Qc5 {[%clk 0:00:27]} 20. Kh1 {[%clk 0:00:45]}  Qc6 {[%clk 0:00:18]} 21. Be4 {[%clk 0:00:43]}  Qd7 {[%clk 0:00:18]} 22. Qd3 {[%clk 0:00:22]}  Bh6 {[%clk 0:00:18]} 23. Bf3 {[%clk 0:00:20]}  Be3 {[%clk 0:00:17]} 24. c3 {[%clk 0:00:20]}  Kb8 {[%clk 0:00:17]} 25. cxd4 {[%clk 0:00:20]}  Qxd4 {[%clk 0:00:16]} 26. Qxd4 {[%clk 0:00:15]}  Bxd4 {[%clk 0:00:16]} 27. Rexe7 {[%clk 0:00:11]}  Bb6 {[%clk 0:00:15]} 28. Rxb7+ {[%clk 0:00:11]}  Kc8 {[%clk 0:00:15]} 29. h4 {[%clk 0:00:10]}  Rhf8 {[%clk 0:00:15]} 30. Rxf8 {[%clk 0:00:10]}  Rxf8 {[%clk 0:00:15]} 31. Rxh7 {[%clk 0:00:10]}  Bc7 {[%clk 0:00:14]} 32. Re7 {[%clk 0:00:07]}  Rf6 {[%clk 0:00:14]} 33. Re1 {[%clk 0:00:07]}  Ra6 {[%clk 0:00:14]} 34. a4 {[%clk 0:00:06]}  Rb6 {[%clk 0:00:14]} 35. Bd5 {[%clk 0:00:06]}  Kd7 {[%clk 0:00:14]} 36. Bc4 {[%clk 0:00:06]}  Bg3 {[%clk 0:00:14]} 37. Rd1+ {[%clk 0:00:07]}  Ke7 {[%clk 0:00:14]} 38. Rd4 {[%clk 0:00:06]}  Rf6 {[%clk 0:00:13]} 39. Rg4 {[%clk 0:00:05]}  Bd6 {[%clk 0:00:11]} 40. g3 {[%clk 0:00:04]}  Rf3 {[%clk 0:00:09]} 41. Kg2 {[%clk 0:00:04]}  Rc3 {[%clk 0:00:08]} 42. Rxg6 {[%clk 0:00:04]}  Rc2+ {[%clk 0:00:09]} 43. Kh3 {[%clk 0:00:04]}  Rc3 {[%clk 0:00:10]} 44. h5 {[%clk 0:00:04]}  Be5 {[%clk 0:00:10]} 45. Re6+ {[%clk 0:00:03]}  Kd7 {[%clk 0:00:08]} 46. Rxe5 {[%clk 0:00:04]}  Rc1 {[%clk 0:00:08]} 47. Rd5+ {[%clk 0:00:05]}  Kc6 {[%clk 0:00:08]} 48. Rd2 {[%clk 0:00:06]}  Kc5 {[%clk 0:00:08]} 49. Rh2 {[%clk 0:00:06]}  Re1 {[%clk 0:00:08]} 50. h6 {[%clk 0:00:06]}  Re7 {[%clk 0:00:09]} 51. Kg2 {[%clk 0:00:07]}  Rh7 {[%clk 0:00:09]} 52. Bd3 {[%clk 0:00:07]}  Rh8 {[%clk 0:00:10]} 53. h7 {[%clk 0:00:08]}  Kd4 {[%clk 0:00:10]} 54. Bg6 {[%clk 0:00:08]}  Ke5 {[%clk 0:00:10]} 55. Bb1 {[%clk 0:00:08]}  Kf6 {[%clk 0:00:11]} 56. g4 {[%clk 0:00:08]}  Kg7 {[%clk 0:00:12]} 57. Rh5 {[%clk 0:00:07]}  Rc8 {[%clk 0:00:13]} 58. h8=Q+ {[%clk 0:00:07]}  Rxh8 {[%clk 0:00:12]} 59. Rxh8 {[%clk 0:00:08]}  Kxh8 {[%clk 0:00:13]} 60. b4 {[%clk 0:00:09]}  Kg8 {[%clk 0:00:13]} 61. b5 {[%clk 0:00:10]}  Kf8 {[%clk 0:00:13]} 62. a5 {[%clk 0:00:11]} 1-0

[Event "December 19 Early 2023"]
[Site "https://www.chess.com"]
[Date "2023.12.19"]
[Round "7"]
[White "Sai Han Thiha"]
[Black "Ernst, Luca"]
[Result "1-0"]
[Board "153"]
[TimeControl "180+1"]
[WhiteFideId "13012290"]
[BlackFideId "45117055"]
[WhiteElo "1954"]
[BlackElo "1973"]
[WhiteTeam "MYA"]
[BlackTeam "FRA"]
[WhiteClock "0:00:04"]
[BlackClock "0:00:00"]

1. Nf3 {[%clk 0:03:00]}  Nf6 {[%clk 0:03:00]} 2. g3 {[%clk 0:03:01]}  e6 {[%clk 0:02:59]} 3. Bg2 {[%clk 0:03:01]}  d5 {[%clk 0:03:00]} 4. O-O {[%clk 0:03:01]}  c5 {[%clk 0:02:57]} 5. d3 {[%clk 0:03:02]}  Nc6 {[%clk 0:02:56]} 6. Nbd2 {[%clk 0:03:02]}  Be7 {[%clk 0:02:55]} 7. e4 {[%clk 0:03:02]}  O-O {[%clk 0:02:46]} 8. Re1 {[%clk 0:03:02]}  Re8 {[%clk 0:02:41]} 9. e5 {[%clk 0:03:01]}  Nd7 {[%clk 0:02:40]} 10. Nf1 {[%clk 0:03:02]}  b5 {[%clk 0:02:37]} 11. h4 {[%clk 0:03:00]}  a5 {[%clk 0:02:35]} 12. h5 {[%clk 0:03:00]}  h6 {[%clk 0:02:35]} 13. N1h2 {[%clk 0:02:48]}  Bf8 {[%clk 0:02:34]} 14. Ng4 {[%clk 0:02:42]}  b4 {[%clk 0:02:24]} 15. Bf4 {[%clk 0:02:41]}  Ne7 {[%clk 0:02:16]} 16. c4 {[%clk 0:02:34]}  bxc3 {[%clk 0:02:14]} 17. bxc3 {[%clk 0:02:35]}  Nf5 {[%clk 0:02:12]} 18. Rb1 {[%clk 0:02:11]}  Ba6 {[%clk 0:02:02]} 19. Qc2 {[%clk 0:01:41]}  Qc7 {[%clk 0:01:57]} 20. c4 {[%clk 0:01:37]}  d4 {[%clk 0:01:51]} 21. Nd2 {[%clk 0:01:20]}  Rab8 {[%clk 0:01:43]} 22. Ne4 {[%clk 0:01:18]}  Rb4 {[%clk 0:00:55]} 23. a3 {[%clk 0:01:16]}  Rxb1 {[%clk 0:00:55]} 24. Rxb1 {[%clk 0:01:17]}  Rb8 {[%clk 0:00:55]} 25. Bf1 {[%clk 0:00:57]}  Bb7 {[%clk 0:00:49]} 26. Bg2 {[%clk 0:00:40]}  Bc6 {[%clk 0:00:45]} 27. Nd2 {[%clk 0:00:39]}  Bxg2 {[%clk 0:00:44]} 28. Kxg2 {[%clk 0:00:40]}  Qc6+ {[%clk 0:00:45]} 29. Ne4 {[%clk 0:00:36]}  Rb6 {[%clk 0:00:31]} 30. Rb2 {[%clk 0:00:33]}  Qb7 {[%clk 0:00:25]} 31. Rxb6 {[%clk 0:00:33]}  Nxb6 {[%clk 0:00:23]} 32. Qb3 {[%clk 0:00:33]}  Qc6 {[%clk 0:00:23]} 33. Kg1 {[%clk 0:00:28]}  Be7 {[%clk 0:00:23]} 34. Nh2 {[%clk 0:00:28]}  Kf8 {[%clk 0:00:14]} 35. Nf3 {[%clk 0:00:28]}  Ke8 {[%clk 0:00:13]} 36. g4 {[%clk 0:00:28]}  Nh4 {[%clk 0:00:12]} 37. Nxh4 {[%clk 0:00:20]}  Bxh4 {[%clk 0:00:13]} 38. Nd6+ {[%clk 0:00:21]}  Kf8 {[%clk 0:00:13]} 39. Qb1 {[%clk 0:00:17]}  Be7 {[%clk 0:00:12]} 40. Qc1 {[%clk 0:00:17]}  Bxd6 {[%clk 0:00:11]} 41. exd6 {[%clk 0:00:18]}  f6 {[%clk 0:00:10]} 42. Bg3 {[%clk 0:00:10]}  e5 {[%clk 0:00:09]} 43. f4 {[%clk 0:00:11]}  Qf3 {[%clk 0:00:08]} 44. Kh2 {[%clk 0:00:07]}  Qxg4 {[%clk 0:00:06]} 45. fxe5 {[%clk 0:00:06]}  Qxh5+ {[%clk 0:00:07]} 46. Kg2 {[%clk 0:00:06]}  Qe2+ {[%clk 0:00:06]} 47. Kh1 {[%clk 0:00:05]}  Qf3+ {[%clk 0:00:03]} 48. Kh2 {[%clk 0:00:05]}  fxe5 {[%clk 0:00:04]} 49. Qb2 {[%clk 0:00:05]}  Qh5+ {[%clk 0:00:02]} 50. Kg2 {[%clk 0:00:05]}  Nd7 {[%clk 0:00:02]} 51. Qb7 {[%clk 0:00:05]}  Qe2+ {[%clk 0:00:02]} 52. Kh3 {[%clk 0:00:05]}  Qh5+ {[%clk 0:00:02]} 53. Bh4 {[%clk 0:00:05]}  Qf3+ {[%clk 0:00:00]} 54. Qxf3+ {[%clk 0:00:04]} 1-0

[Event "December 19 Early 2023"]
[Site "https://www.chess.com"]
[Date "2023.12.19"]
[Round "7"]
[White "noblerone"]
[Black "Barwinska, Ewa"]
[Result "1-0"]
[Board "160"]
[TimeControl "180+1"]
[BlackFideId "21833761"]
[WhiteElo "2494"]
[BlackElo "1879"]
[BlackTeam "POL"]
[WhiteClock "0:00:39"]
[BlackClock "0:00:40"]

1. d4 {[%clk 0:03:00]}  b6 {[%clk 0:02:59]} 2. Nf3 {[%clk 0:02:56]}  Bb7 {[%clk 0:03:00]} 3. g3 {[%clk 0:02:56]}  d6 {[%clk 0:02:56]} 4. Bg2 {[%clk 0:02:56]}  c5 {[%clk 0:02:55]} 5. O-O {[%clk 0:02:56]}  Nd7 {[%clk 0:02:55]} 6. b3 {[%clk 0:02:54]}  Ngf6 {[%clk 0:02:55]} 7. Bb2 {[%clk 0:02:55]}  cxd4 {[%clk 0:02:53]} 8. Bxd4 {[%clk 0:02:51]}  e5 {[%clk 0:02:53]} 9. Bb2 {[%clk 0:02:51]}  Be7 {[%clk 0:02:54]} 10. c4 {[%clk 0:02:51]}  O-O {[%clk 0:02:50]} 11. Nc3 {[%clk 0:02:51]}  Nc5 {[%clk 0:02:49]} 12. Qd2 {[%clk 0:02:34]}  Nce4 {[%clk 0:02:47]} 13. Nxe4 {[%clk 0:02:33]}  Nxe4 {[%clk 0:02:47]} 14. Qc2 {[%clk 0:02:27]}  Ng5 {[%clk 0:02:29]} 15. Nxg5 {[%clk 0:02:25]}  Bxg5 {[%clk 0:02:26]} 16. Bxb7 {[%clk 0:02:24]}  Rb8 {[%clk 0:02:26]} 17. Bg2 {[%clk 0:02:20]}  f5 {[%clk 0:02:27]} 18. Rad1 {[%clk 0:02:18]}  Qe7 {[%clk 0:02:25]} 19. Qd3 {[%clk 0:02:17]}  Rbd8 {[%clk 0:02:23]} 20. b4 {[%clk 0:02:09]}  Kh8 {[%clk 0:02:17]} 21. Qd5 {[%clk 0:02:06]}  f4 {[%clk 0:02:09]} 22. Bh3 {[%clk 0:01:55]}  Qf6 {[%clk 0:02:00]} 23. Qe6 {[%clk 0:01:50]}  Qxe6 {[%clk 0:01:45]} 24. Bxe6 {[%clk 0:01:51]}  Rf6 {[%clk 0:01:45]} 25. Bh3 {[%clk 0:01:46]}  Rh6 {[%clk 0:01:41]} 26. Bg2 {[%clk 0:01:43]}  Rc8 {[%clk 0:01:40]} 27. Bd5 {[%clk 0:01:38]}  Rf6 {[%clk 0:01:40]} 28. Kg2 {[%clk 0:01:38]}  h5 {[%clk 0:01:39]} 29. a3 {[%clk 0:01:28]}  h4 {[%clk 0:01:36]} 30. Rd3 {[%clk 0:01:07]}  Re8 {[%clk 0:01:29]} 31. Be4 {[%clk 0:01:05]}  Kg8 {[%clk 0:01:22]} 32. Rfd1 {[%clk 0:01:02]}  Rd8 {[%clk 0:01:12]} 33. c5 {[%clk 0:01:00]}  bxc5 {[%clk 0:01:11]} 34. bxc5 {[%clk 0:00:59]}  fxg3 {[%clk 0:01:07]} 35. hxg3 {[%clk 0:00:58]}  h3+ {[%clk 0:01:07]} 36. Kxh3 {[%clk 0:00:49]}  Rxf2 {[%clk 0:01:08]} 37. Rxd6 {[%clk 0:00:47]}  Rxd6 {[%clk 0:01:05]} 38. cxd6 {[%clk 0:00:41]}  Rxe2 {[%clk 0:01:05]} 39. Bd5+ {[%clk 0:00:41]}  Kf8 {[%clk 0:01:02]} 40. Bc3 {[%clk 0:00:41]}  Re3 {[%clk 0:00:58]} 41. Bd2 {[%clk 0:00:40]}  Rd3 {[%clk 0:00:56]} 42. d7 {[%clk 0:00:39]}  Rxd5 {[%clk 0:00:40]} 43. Bb4+ {[%clk 0:00:39]} 1-0